Cogmind - Beta 9.3 @@@ ROGUE MODE // 2020.01.05 @ 09:46:40 Player: mrbill82 Result: Destroyed by G-47 Trooper with Particle Gun Performance ------------- Evolutions (2) 1000 Regions Visited (3) 600 Robots Destroyed (41) 205 Value Destroyed (895) 895 Prototype IDs (2) 40 Alien Tech Used (0) 0 Bonus (0) 0 TOTAL SCORE: 2740 Bonus ------- None Cogmind --------- Core Integrity 0/550 Matter 250/300 Energy 100/100 System Corruption 0% Temperature Cool (9) Movement Core (150) Ox2 Location -8/Materials Parts ------- > --- POWER (2) -------- (None) > --- PROPULSION (3) --- (None) > --- UTILITY (4) ------ Medium Storage Unit > --- WEAPON (2) ------- (None) > --- INVENTORY (8) ---- High-capacity Matter Pod (200) Field Recycling Unit (3) Peak State ------------ > --- POWER ------------ Light Ion Engine > --- PROPULSION ------- Aluminum Leg Aluminum Leg Carbon-fiber Leg > --- UTILITY ---------- Improved Heat Sink Medium Storage Unit Small Battery Sensor Array > --- WEAPON ----------- Particle Gun Flak Cannon > --- INVENTORY -------- Aluminum Leg Aluminum Leg High-capacity Matter Pod Field Recycling Unit Grenade Launcher [Rating: 17] Favorites ----------- Power Ion Engine Engine Ion Engine Propulsion Aluminum Leg Leg Aluminum Leg Hover Unit Airjet Utility Sensor Array Device Sensor Array Storage Small Storage Unit Processor Signal Interpreter Weapon Small Laser Energy Gun Small Laser Ballistic Gun Light Assault Rifle Ballistic Cannon Flak Cannon Launcher Grenade Launcher Build | -11 -10 -9 -8 ------- Run | Scr Mat Mat Mat Slots Evolved 4 | . . 2 2 Power 1 | . . . 1 Propulsion 1 | . . 1 . Utility 2 | . . 1 1 Weapon . | . . . . Parts Attached 70 | 6 32 14 18 Power 7 | 1 4 . 2 Engine 7 | 1 4 . 2 Core . | . . . . Reactor . | . . . . Propulsion 24 | 2 12 4 6 Treads . | . . . . Leg 23 | 2 12 4 5 Wheel . | . . . . Hover 1 | . . . 1 Flight . | . . . . Utility 17 | 1 7 5 4 Device 9 | . 2 4 3 Storage 6 | 1 3 1 1 Processor 2 | . 2 . . Hackware . | . . . . Protection . | . . . . Artifact . | . . . . Weapon 22 | 2 9 5 6 Energy Gun 11 | 2 4 3 2 Energy Cannon . | . . . . Ballistic Gun 7 | . 5 2 . Ballistic Cannon 2 | . . . 2 Launcher 2 | . . . 2 Special Weapon . | . . . . Impact Weapon . | . . . . Slashing Weapon . | . . . . Piercing Weapon . | . . . . Special Melee Weapon . | . . . . Unidentified Prototypes . | . . . . Parts Lost 29 | . 4 10 15 Power 3 | . . 1 2 Propulsion 8 | . . 2 6 Utility 4 | . . 1 3 Weapon 14 | . 4 6 4 Highest Loss Streak 12 | . 2 5 12 Average Slot Usage (%) 87 | . 98 80 63 Engine 10 | . 14 7 4 Leg 26 | . 28 27 18 Device 11 | . 8 16 14 Storage 13 | . 14 11 16 Processor 2 | . 4 . . Energy Gun 14 | . 19 10 2 Ballistic Gun 5 | . 7 5 . Naked Turns . | . . . . Heaviest Build 24 | 12 16 24 23 Greatest Support 35 | 20 20 30 35 Greatest Overweight (x) 2 | . 1 2 2 Average Overweight (x) . | . . . . Largest Inventory Capacity 12 | 6 12 8 8 Average Capacity 6 | 5 6 8 8 Most Carried 8 | 2 7 8 7 Average Carried 5 | 1 4 6 4 Final Capacity 8 | 6 8 8 8 Final Carried 7 | 2 7 7 2 Class Distribution -------------------- 51% | Scavenger-Mutant 48% | Mutant Dominant Class ---------------- Mutant | -10/Materials Scavenger-Mutant | -9/Materials Scavenger-Mutant | -8/Materials Resources | -11 -10 -9 -8 ----------- Run | Scr Mat Mat Mat Matter Collected 1326 | 239 733 120 234 Remotely . | . . . . Salvage Created 1366 | . 877 288 201 Parts 84 | . 55 16 13 Haulers Intercepted 3 | . 2 . 1 Recyclers Shooed 2 | . 2 . . Parts Field Recycled 4 | . . 4 . Retrieved Matter 12 | . . 12 . Parts Self-Destructed . | . . . . Prevented . | . . . . Kills | -11 -10 -9 -8 ------- Run | Scr Mat Mat Mat Combat Hostiles Destroyed 30 | . 15 10 5 Melee 1 | . . 1 . Guns 26 | . 15 9 2 Cannons 1 | . . . 1 AOE 2 | . . . 2 Classes Destroyed 8 | . 6 1 1 Worker 2 | . . 1 1 Builder 1 | . 1 . . Hauler 3 | . 2 . 1 Recycler 2 | . 1 . 1 Watcher 3 | . 3 . . Swarmer 12 | . 3 6 3 Grunt 17 | . 12 4 1 Sentry 1 | . . . 1 Best Kill Streak 3 | . 3 3 3 Combat Bots Only 3 | . 3 3 3 Max Kills in Single Turn 1 | . 1 1 1 Gunslinging . | . . . . Exploded 1 | . . . 1 Melee 1 | . . 1 . Uniques/NPCs Destroyed . | . . . . Combat | -11 -10 -9 -8 -------- Run | Scr Mat Mat Mat Damage Taken 2829 | . 614 939 1276 Core 770 | . 59 151 560 Absorbed by Shields . | . . . . Core Remaining (%) 79 | 100 76 62 . Volleys Fired 126 | . 66 38 22 Largest 2 | . 2 2 2 Hottest 126 | . 105 126 109 Shots Fired 207 | . 120 54 33 Gun 187 | . 120 54 13 Cannon 9 | . . . 9 Launcher 11 | . . . 11 Special . | . . . . Kinetic 85 | . 47 29 9 Thermal 87 | . 49 25 13 Explosive 11 | . . . 11 Electromagnetic 24 | . 24 . . Robot Hit Streak 16 | . 16 12 5 Robot Miss Streak 5 | . 3 3 5 Penetration Max . | . . . . Secondary Targets . | . . . . Shots Hit Robots 133 | . 84 34 15 Core Hits 77 | . 38 17 22 Critical Hits . | . . . . Critical Kills . | . . . . Critical Parts Destroyed . | . . . . Melee Attacks . | . . . . Impact . | . . . . Slashing . | . . . . Piercing . | . . . . Sneak Attacks . | . . . . Combat Hostiles . | . . . . Follow-up Attacks . | . . . . Damage Inflicted 2073 | . 987 343 743 Guns 1430 | . 985 334 111 Cannons 181 | . . . 181 Explosions 451 | . . . 451 Melee . | . . . . Ramming 11 | . 2 9 . Kinetic 668 | . 340 147 181 Thermal 653 | . 355 187 111 Explosive 451 | . . . 451 Electromagnetic 290 | . 290 . . Impact . | . . . . Slashing . | . . . . Piercing . | . . . . Highest Corruption 3 | . 2 3 . Average Corruption 2 | . 2 2 . Corruption Purged . | . . . . Effects 10 | . 9 1 . Message Errors 3 | . 3 . . Heat Flow Errors 2 | . 1 1 . Energy Discharges 2 | . 2 . . Data Loss (minor) 3 | . 3 . . Overload Shots . | . . . . Overflow Damage 47 | . . . 47 Projectiles . | . . . . Explosions 47 | . . . 47 Melee . | . . . . Knockbacks 3 | . . . 3 Impact . | . . . . Kinetic 3 | . . . 3 Secondary . | . . . . Self-Inflicted Damage 210 | . . 3 207 Shots 8 | . . . 8 Rammed 2 | . . 2 . Targets Rammed 4 | . 1 3 . Kicked 2 | . 1 1 . Crushed . | . . . . Highest Temperature 290 | . 290 205 85 Average Temperature 53 | . 54 56 31 Received Heat Transfer 993 | . 291 360 342 Siege Activations . | . . . . Robots Corrupted . | . . . . Combat Hostiles . | . . . . Parts Fried . | . . . . Impact Corruptions . | . . . . Robots Melted . | . . . . Combat Hostiles . | . . . . Parts Melted . | . . . . Heat Transferred 1552 | . 870 423 259 Parts Sabotaged . | . . . . Parts Stolen . | . . . . Parts Stripped . | . . . . Power Chain Reactions . | . . . . Missiles Intercepted . | . . . . Alert | -11 -10 -9 -8 ------- Run | Scr Mat Mat Mat Peak Influence 296 | . 258 296 270 Average Influence 105 | . 95 142 109 Maximum Alert Level 1 | . 1 1 1 Low Security (%) 85 | 100 94 70 75 Level 1 14 | . 5 29 24 Level 2 . | . . . . Level 3 . | . . . . Level 4 . | . . . . Level 5 . | . . . . High Security . | . . . . Max Security . | . . . . Squads Dispatched 6 | . 3 2 1 Investigation 1 | . 1 . . Extermination . | . . . . Reinforcement 5 | . 2 2 1 Assault . | . . . . Garrison . | . . . . Intercept . | . . . . Construction Impeded 1 | . . . 1 Haulers Reinforced . | . . . . Stealth | -11 -10 -9 -8 --------- Run | Scr Mat Mat Mat Distress Signals 3 | . 1 1 1 Communications Jammed . | . . . . Distress Signals . | . . . . Times Spotted 62 | . 25 19 18 Peak Tracking Total 7 | . 3 4 7 Tactical Retreats 2 | . 1 1 . Traps | -11 -10 -9 -8 ------- Run | Scr Mat Mat Mat Traps Triggered 8 | . 5 3 . Indirectly . | . . . . Trap Hack Attempts . | . . . . Triggered . | . . . . Disarmed . | . . . . Reprogrammed . | . . . . Reused . | . . . . Traps Extracted . | . . . . Installed . | . . . . Triggered . | . . . . Machines | -11 -10 -9 -8 ---------- Run | Scr Mat Mat Mat Machines Disabled 4 | . . . 4 Max in Single Turn 1 | . . . 1 Machines Sabotaged . | . . . . Garrisons Compromised . | . . . . Overloaded Fab Kills . | . . . . Fab Network Shutdowns . | . . . . Hacking | -11 -10 -9 -8 --------- Run | Scr Mat Mat Mat Machines Accessed 8 | . 6 1 1 Terminals 7 | . 5 1 1 Fabricators . | . . . . Repair Stations . | . . . . Recycling Units 1 | . 1 . . Scanalyzers . | . . . . Garrison Access . | . . . . Total Hacks 29 | . 19 7 3 Successful 17 | . 10 5 2 Failed 12 | . 9 2 1 Catastrophic 1 | . 1 . . Database Lockouts . | . . . . Manual . | . . . . Terminals 28 | . 18 7 3 Fabricators . | . . . . Repair Stations . | . . . . Recycling Units 1 | . 1 . . Scanalyzers . | . . . . Garrison Access . | . . . . Terminal Hacks 16 | . 9 5 2 Prototype ID Bank 1 | . 1 . . Terminal Index 2 | . 1 . 1 Locate Traps 2 | . . 1 1 Security Status 1 | . . 1 . Surveillance Status 2 | . 1 1 . Patrol Status 2 | . 2 . . Assault Status 1 | . . 1 . Hauler Manifests 2 | . 2 . . Zone Layout 3 | . 2 1 . Fabricator Hacks . | . . . . Repair Station Hacks . | . . . . Recycling Unit Hacks 1 | . 1 . . Retrieve Components 1 | . 1 . . Scanalyzer . | . . . . Garrison Access Hacks . | . . . . Unauthorized Hacks . | . . . . Terminals . | . . . . Fabricators . | . . . . Repair Stations . | . . . . Recycling Units . | . . . . Scanalyzers . | . . . . Garrison Access . | . . . . Data Cores Recovered . | . . . . Used . | . . . . Hacking Detections 7 | . 5 1 1 Full Trace Events 1 | . . . 1 Feedback Events . | . . . . Feedback Blocked . | . . . . Robot Schematics Acquired . | . . . . Robots Built . | . . . . Matter . | . . . . Time . | . . . . Total Robot Build Rating . | . . . . Part Schematics Acquired . | . . . . Parts Built . | . . . . Matter . | . . . . Time . | . . . . Total Part Build Rating . | . . . . Parts Repaired . | . . . . Time . | . . . . Parts Recycled . | . . . . Recycled Matter . | . . . . Retrieved Matter . | . . . . Retrieved Components 5 | . 5 . . Parts Scanalyzed . | . . . . Part Schematics Acquired . | . . . . Parts Damaged . | . . . . Bothacking | -11 -10 -9 -8 ------------ Run | Scr Mat Mat Mat Used RIF Installer . | . . . . Robots Hacked . | . . . . Non-combat . | . . . . Combat . | . . . . Robot Hacks Applied . | . . . . Relay Couplers Released . | . . . . Robots Rewired . | . . . . Allies Hacked . | . . . . Hacks Repelled . | . . . . Allies | -11 -10 -9 -8 -------- Run | Scr Mat Mat Mat Total Allies . | . . . . Largest Group . | . . . . Highest-Rated Group . | . . . . Highest-Rated Ally . | . . . . Total Orders . | . . . . Ally Attacks . | . . . . Total Damage . | . . . . Kills . | . . . . Allies Corrupted . | . . . . Allies Melted . | . . . . Intel | -11 -10 -9 -8 ------- Run | Scr Mat Mat Mat Robot Analysis Total . | . . . . Derelict Logs Recovered . | . . . . Drone Launches . | . . . . Drone Recoveries . | . . . . Exploration | -11 -10 -9 -8 ------------- Run | Scr Mat Mat Mat Turns Passed 2416 | 78 1323 547 468 Spaces Moved 1478 | 58 827 297 296 Core 43 | 3 . . 40 Treads . | . . . . Legs 1432 | 55 827 297 253 Wheels . | . . . . Hover 3 | . . . 3 Flight . | . . . . Fastest Speed 50 | 50 120 120 60 Average Speed 121 | 116 120 122 127 Slowest Speed 180 | 120 150 180 150 Overloaded Moves . | . . . . Propulsion Burnouts . | . . . . Robots Hopped . | . . . . Cave-ins Triggered . | . . . . Exploration Rate (%) 32 | 6 85 22 15 Regions Visited 3 Branch Regions . Pre-discovered Areas . | . . . . Known Exits Taken . | . . . . Unknown Exits Taken 3 | 1 1 1 . Scrap Searched . | . . . . Spaces Dug . | . . . . Terrain Destroyed 63 | . . . 63 Melee . | . . . . Projectile . | . . . . AOE 63 | . . . 63 Actions | -11 -10 -9 -8 --------- Run | Scr Mat Mat Mat Total 1886 | 65 1042 429 350 Wait 165 | . 81 73 11 Move 1475 | 57 826 296 296 Hop . | . . . . Pick Up 18 | 2 13 2 1 Fast Attach 31 | 6 12 7 6 Attach 17 | . 3 6 8 Detach 6 | . 2 3 1 Swap 22 | . 17 1 4 Drop 22 | . 21 . 1 Fire 126 | . 66 38 22 Melee . | . . . . Ram . | . . . . Kick 4 | . 1 3 . Crush . | . . . . Escape Stasis . | . . . . Rewire . | . . . . Trap . | . . . . Miscellaneous . | . . . . Route ------- -11/Scrapyard -10/Materials (discovered 4 exits: *Mat x3 / *Min) -9/Materials -8/Materials History --------- Turn | Location | Event 20 | -11/Scrapyard | Discovered new exit (range 15) 79 | -11/Scrapyard | Entered Materials 331 | -10/Materials | Build established: Mutant 339 | -10/Materials | Discovered new exit (range 15) 358 | -10/Materials | Identified exit to Mines 587 | -10/Materials | Discovered new exit (range 5) 962 | -10/Materials | Discovered new exit (range 15) 1214 | -10/Materials | Discovered new exit (range 16) 1402 | -10/Materials | Entered another Materials area 1402 | -9/Materials | Evolved 2 slots: Propulsion x1, Utility x1 1474 | -9/Materials | Build established: Scavenger-Mutant 1942 | -9/Materials | Discovered new exit (range 8) 1949 | -9/Materials | Entered another Materials area 1949 | -8/Materials | Evolved 2 slots: Power x1, Utility x1 1966 | -8/Materials | Lost 5 parts (2n3w) 2380 | -8/Materials | Core integrity fell below 50% 2410 | -8/Materials | Core integrity fell below 20% 2417 | -8/Materials | Destroyed by G-47 Trooper with Particle Gun Last Messages --------------- 02358_ Penetrated by Slug. 02362_ R-06 Scavenger collects Lgt. Armor Plating. 02362_ Slug penetrates Earth. 02362_ Sml. Battery destroyed. 02365_ The unstable cave ceiling collapses. 02365_ Penetrated by Slug. 02366_ R-06 Scavenger collects Heat Sink. 02370_ The unstable cave ceiling collapses. 02374_ U-05 Engineer lays Concrete. 02377_ U-05 Engineer builds a Wall. 02380_ U-05 Engineer lays Concrete. 02383_ Slug penetrates Wall. 02384_ Acquired Airjet. 02386_ U-05 Engineer lays Concrete. 02387_ Airjet destroyed. 02388_ U-05 Engineer lays Concrete. 02389_ K-01 Serf collects debris. 02389_ U-05 Engineer lays Concrete. 02393_ Slug penetrates Wall. 02402_ Penetrated by Slug. Map ----- +----------------------------------------------------+ | ?????????????????????????????????????? | | ?????????????????????????????????????? | | ?????????????????????????????????????? | | ?????????????????????????????????????? | | ?????????????????????????????????????? | | ?????????????????????????????????????? | | ?????????????????????????????????????? | | ?????????????????????????????????????? | | ?????????????????????????????????????? | | ?????########?????#??????????????????? | | ???#?# """ #????????????????????????? | | ?????# """ #??#?????????????????????? | | ?????# """ #????????????????????????? | | ?????# #??##########????????????? | | ?????# #??# ! #????????????? | | ?????# #??# """ #????????????? | | ?????######+#### ! "T" #????????????? | | ???????# # " " #????????????? | | ???????# + #????????????? | | ???????# # """ #????????????? | | ???????##### # """ #????????????? | | ???????????# # """ #????????????? | | ???????????# # ! #????????????? | | ???????????# ##########????????????? | | ???????????# #?????????????????????? | | ???????????# @ ###########???????????? | | ??? ??????# # #???????????? | | ??? ""????# #"" """ #???????????? | | ??# ""S ??# #"T " """ #???????????? | | ?# "" # # "" #???????????? | | ??# + + = "" #???????????? | | ??? """ # # [ " #???????????? | | ??? """ ??# g # #???????????? | | ??? """????# gh# #???????????? | | ??? ??????#g #############?????????? | | ???????????# # #?????????? | | ???????????# # """ #?????????? | | ???????????# + """ #?????????? | | ?#######???# # """ #?????????? | | ?# #???# # #?????????? | | ?# #??## #### ########?????????? | | ?# ######/#######????????????????? | | ?# # #????????????????? | | ?# # #????????????????? | | ?# # #????????????????? | | ?# # #????????????????? | | ?# # #????????????????? | | ?# ####+## #####??????????????? | | ?# / + #??????????????? | | ?# ### # #??????????????? | +----------------------------------------------------+ Best States ------------- Heat Dissipation 45 Energy Generation 10 Energy Capacity 250 Matter Stores 470 Matter Capacity 500 Sight Range 16 Robot Scan Range 10 Terrain Scan Density 10 Evasion (%) 40 Targeting Accuracy 5 Item Schematics ----------------- None Robot Schematics ------------------ None Fabricated ------------ Nothing Alien Tech Used ----------------- None Achievements -------------- None Challenges ------------ None Game ------ Seed BombardmentAbsorptionTreads Manual? 0 Play Time 00:34:28 Cumulative 12.9 hours Start 2020.01.05 @ 09:02:18 End 2020.01.05 @ 09:46:40 Sessions 1 Manual Loads 0 Difficulty Rogue Special Mode None Game No. 24 Rogue 24 Adventurer 0 Explorer 0 Win Type - Total 0 Types 0/0/0/0/0/0/0 Lore% 16 Gallery% 14 Achievement% 13 Wizard Run 0 Options --------- ASCII 0 Keyboard 1 Movement Numpad Keybinds 0 Fullscreen 2 Font 18/X11 Map View 76x50 Tactical HUD 1 Map Filters NONE Filters NONE Steam 1 RUN: 1a549982-ad77-4223-9295-d54ffec82e6c